fUST/lending_fUST_20250121
["ID","MTS","AMOUNT","RATE_DAILY","PERIOD"]
[349734354,1737400238967,-353.7597518,0.00021397,2]
[349734355,1737400238977,-213.6124398,0.00021397,2]
[349734356,1737400238986,-172.5091,0.00021478,2]
[349734357,1737400238996,-308.0434598,0.00021534,2]
[349734358,1737400239007,-500.0,0.00021545,7]
[349734359,1737400239017,-500.0,0.00021546,2]
[349734360,1737400239027,-189.592,0.00021546,2]
[349734361,1737400239036,-156.621993,0.0002156,5]
[349734362,1737400239051,-4550.0,0.000216,4]
[349734363,1737400239062,-153.0,0.00021808,2]
[349734364,1737400239072,-295.8859504,0.00021808,2]
[349734365,1737400239081,-339.911839,0.00021808,2]
[349734366,1737400239092,-332.5419597,0.00021808,2]
[349734367,1737400239102,-153.0,0.00021808,2]
[349734368,1737400239111,-154.1159478,0.00021808,2]
[349734369,1737400239122,-153.0,0.00021808,2]
[349734370,1737400239132,-215.1709412,0.00021808,2]
[349734371,1737400239142,-153.0,0.00021808,2]
[349734372,1737400239151,-153.0,0.00021808,2]
[349734373,1737400239162,-154.1159478,0.00021808,2]
[349734374,1737400239174,-153.0,0.00021808,2]
[349734375,1737400239183,-215.1709412,0.00021808,2]
[349734376,1737400239193,-154.1159478,0.00021808,2]
[349734377,1737400239203,-215.1709412,0.00021808,2]
[349734378,1737400239212,-153.0,0.00021808,2]
[349734379,1737400239222,-215.1709412,0.00021808,2]
[349734380,1737400239231,-154.1159478,0.00021808,2]
[349734381,1737400239241,-153.0,0.00021808,2]
[349734382,1737400239250,-215.1709412,0.00021808,2]
[349734383,1737400239259,-154.1159478,0.00021808,2]
[349734384,1737400239268,-153.0,0.00021808,2]
[349734385,1737400239278,-154.1159478,0.00021808,2]
[349734386,1737400239287,-215.1709412,0.00021808,2]
[349734387,1737400239296,-215.1709412,0.00021808,2]
[349734388,1737400239307,-154.1159478,0.00021808,2]
[349734389,1737400239317,-153.0,0.00021808,2]
[349734390,1737400239326,-215.1709412,0.00021808,2]
[349734391,1737400239336,-154.1159478,0.00021808,2]
[349734392,1737400239345,-154.1159478,0.00021808,2]
[349734393,1737400239355,-154.1159478,0.00021808,2]
[349734394,1737400239365,-154.1159478,0.00021808,2]
[349734395,1737400239375,-154.1159478,0.00021808,2]
[349734396,1737400239385,-451.7491936,0.00021816,2]
[349734397,1737400239395,-451.74919356,0.00021816,2]
[349734398,1737400239404,-451.74919356,0.00021817,2]
[349734399,1737400239414,-451.74919356,0.00021817,2]
[349734400,1737400239426,-632.07898696,0.00021817,3]
[349734401,1737400239451,-5380.22328491,0.00021817,3]
[349734402,1737400239461,-451.74919356,0.00021817,2]
[349734403,1737400239471,-1954.83896921,0.00021834,2]
[349734404,1737400239485,-7782.38687784,0.00021834,2]
[349734405,1737400239495,-3000.0,0.000219,2]
[349734406,1737400239505,-329.52673168,0.000219,3]
[349734407,1737400239515,-1816.46411713,0.0002191,2]
[349734465,1737400247195,-500.0,0.0002159,2]
[349734466,1737400247206,-1183.53588287,0.0002191,2]
[349734467,1737400247217,-500.0,0.00021916,2]
[349734468,1737400247227,-500.0,0.00021916,2]
[349734469,1737400247237,-500.0,0.00021916,2]
[349734470,1737400247247,-500.0,0.00021916,2]
[349734471,1737400247256,-500.0,0.00021916,2]
[349734472,1737400247265,-500.0,0.00021916,2]
[349734473,1737400247275,-500.0,0.00021916,2]
[349734474,1737400247285,-500.0,0.00021916,2]
[349734475,1737400247298,-500.0,0.00021916,2]
[349734476,1737400247315,-500.0,0.00021916,2]
[349734477,1737400247330,-500.0,0.00021916,2]
[349734478,1737400247346,-500.0,0.00021916,2]
[349734479,1737400247357,-500.0,0.00021916,2]
[349734480,1737400247366,-500.0,0.00021916,2]
[349734481,1737400247377,-238.38082201,0.00021916,2]
[349734482,1737400247387,-504.08083452,0.00021916,2]
[349734483,1737400247396,-500.0,0.00021916,2]
[349734484,1737400247407,-500.0,0.00021916,2]
[349734485,1737400247417,-500.0,0.00021916,2]
[349734486,1737400247427,-500.0,0.00021916,2]
[349734487,1737400247436,-500.0,0.00021916,2]
[349734488,1737400247446,-416.76872061,0.00021916,2]
[349734499,1737400487281,164.316829,0.00013973,2]
[349734554,1737401205143,-183.71363067,0.0001981,2]
[349734587,1737401431982,-920.0,0.000189,2]
[349734617,1737401432449,-171.79134291,0.000189,2]
[349734618,1737401432459,-3904.5173098,0.00019968,2]
[349734619,1737401432470,-300.0,0.00019999,2]
[349734620,1737401432479,-30831.94129871,0.0002,4]
[349734621,1737401432490,-9168.05870129,0.0002,4]
[349734622,1737401432501,-500.0,0.00020432,2]
[349734623,1737401432511,-389.67281652,0.00020444,2]
[349734624,1737401432520,-20986.73957035,0.000209,3]
[349734625,1737401432530,-9523.12495633,0.000209,2]
[349734626,1737401432539,-318.54250702,0.000209,2]
[349734627,1737401432549,-155.68,0.00020973,2]
[349734628,1737401432559,-500.0,0.00020973,2]
[349734629,1737401432569,-500.0,0.00020973,2]
[349734630,1737401432578,-500.0,0.00020973,2]
[349734631,1737401432589,-500.0,0.00020973,2]
[349734632,1737401432598,-500.60598341,0.00020973,2]
[349734633,1737401432607,-153.94405258,0.00020973,2]
[349734634,1737401432617,-416.69794805,0.00020973,2]
[349734635,1737401432626,-500.0,0.00020973,2]
[349734636,1737401432635,-500.0,0.00020973,2]
[349734637,1737401432651,-175.30712433,0.00020973,2]
[349734638,1737401432661,-401.82860518,0.00020973,2]
[349734639,1737401432670,-538.58790338,0.00020973,2]
[349734640,1737401432679,-500.0,0.00020973,2]
[349734641,1737401432689,-500.0,0.00020973,2]
[349734642,1737401432698,-207.99231028,0.00020973,2]
[349734643,1737401432707,-500.0,0.00020973,2]
[349734644,1737401432716,-187.431,0.00020973,2]
[349734645,1737401432725,-100478.72861521,0.00020999,5]
[349734646,1737401432735,-160.0,0.00020999,2]
[349734647,1737401432744,-160.0,0.00020999,2]
[349734648,1737401432753,-161.50234174,0.00020999,2]
[349734649,1737401432762,-413.93614206,0.00020999,2]
[349734650,1737401432771,-500.0,0.00020999,2]
[349734651,1737401432780,-500.0,0.00020999,2]
[349734652,1737401432790,-314.25400021,0.00020999,2]
[349734653,1737401432799,-500.0,0.00020999,2]
[349734654,1737401432808,-500.0,0.00020999,2]
[349734655,1737401432818,-500.0,0.00020999,2]
[349734656,1737401432827,-890.689997,0.00020999,2]
[349734657,1737401432836,-890.689997,0.00020999,2]
[349734658,1737401432845,-890.689997,0.00020999,2]
[349734659,1737401432855,-890.689997,0.00020999,2]
[349734660,1737401432864,-890.68999697,0.00020999,2]
[349734661,1737401432873,-890.68999697,0.00020999,2]
[349734662,1737401432882,-890.68999697,0.00020999,2]
[349734663,1737401432894,-890.68999696,0.00020999,2]
[349734664,1737401432903,-24914.77381199,0.00021,15]
[349734665,1737401432915,-5705.67809228,0.00021,15]
[349734666,1737401436611,164.081237,0.00013973,2]
[349734705,1737401437849,-500.0,0.00020998,2]
[349734707,1737401437858,-500.0,0.00020998,2]
[349734709,1737401437868,-500.0,0.00020998,2]
[349734711,1737401437877,-594.87455605,0.00020998,2]
[349734713,1737401437887,-240.63028843,0.00020998,2]
[349734716,1737401437896,-500.0,0.00020998,2]
[349734718,1737401437906,-500.0,0.00020998,2]
[349734720,1737401437915,-500.0,0.00020998,2]
[349734722,1737401437924,-500.0,0.00020998,2]
[349734725,1737401437934,-316.33805164,0.00020998,2]
[349734727,1737401437945,-278.53650441,0.00020998,2]
[349734729,1737401437954,-500.0,0.00020998,2]
[349734731,1737401437964,-500.0,0.00020998,2]
[349734733,1737401437973,-500.0,0.00020998,2]
[349734735,1737401437983,-594.87455605,0.00020998,2]
[349734737,1737401437992,-500.0,0.00020998,2]
[349734739,1737401438002,-500.0,0.00020998,2]
[349734741,1737401438011,-500.0,0.00020998,2]
[349734743,1737401438020,-594.87455605,0.00020998,2]
[349734745,1737401438029,-227.80891633,0.00020998,2]
[349734748,1737401438038,-500.0,0.00020998,2]
[349734750,1737401438048,-500.0,0.00020998,2]
[349734752,1737401438057,-594.87455605,0.00020998,2]
[349734754,1737401438066,-500.0,0.00020998,2]
[349734756,1737401438075,-500.0,0.00020998,2]
[349734758,1737401438084,-594.87455605,0.00020998,2]
[349734760,1737401438093,-630.74057639,0.00020998,2]
[349734762,1737401438102,-500.0,0.00020998,2]
[349734764,1737401438111,-594.87455605,0.00020998,2]
[349734778,1737401438232,-500.0,0.00020998,2]
[349734780,1737401438242,-500.0,0.00020998,2]
[349734782,1737401438251,-594.87455605,0.00020998,2]
[349734784,1737401438261,-500.0,0.00020998,2]
[349734786,1737401438269,-500.0,0.00020998,2]
[349734788,1737401438279,-594.87455605,0.00020998,2]
[349734790,1737401438288,-500.0,0.00020998,2]
[349734792,1737401438297,-500.0,0.00020998,2]
[349734794,1737401438307,-594.87455605,0.00020998,2]
[349734796,1737401438316,-500.0,0.00020998,2]
[349734798,1737401438326,-15.25198569,0.00020998,2]
[349734800,1737401438338,-484.74801431,0.00020998,2]
[349734802,1737401438348,-594.87455605,0.00020998,2]
[349734804,1737401438357,-500.0,0.00020998,2]
[349734806,1737401438366,-365.33871291,0.00020998,2]
[349734808,1737401438376,-594.87455605,0.00020998,2]
[349734809,1737401438384,-500.0,0.00020998,2]
[349734810,1737401438394,-500.0,0.00020998,2]
[349734811,1737401438405,-594.87455605,0.00020998,2]
[349734812,1737401438414,-500.0,0.00020998,2]
[349734813,1737401438426,-594.87455605,0.00020998,2]
[349734814,1737401438435,-500.0,0.00020998,2]
[349734815,1737401438444,-500.0,0.00020998,2]
[349734816,1737401438454,-594.87455605,0.00020998,2]
[349734817,1737401438465,-500.0,0.00020998,2]
[349734818,1737401438474,-500.0,0.00020998,2]
[349734819,1737401438484,-122.71673521,0.00020998,2]
[349734820,1737401438496,-74.43674049,0.00020998,2]
[349734821,1737401438507,-594.87455605,0.00020998,2]
[349734822,1737401438517,-500.0,0.00020998,2]
[349734823,1737401438527,-594.87455605,0.00020998,2]
[349734824,1737401438536,-594.87455605,0.00020998,2]
[349734825,1737401438546,-500.0,0.00020998,2]
[349734827,1737401438557,-594.87455605,0.00020998,2]
[349734829,1737401438566,-500.0,0.00020998,2]
[349734831,1737401438576,-594.87455605,0.00020998,2]
[349734833,1737401438585,-594.87455605,0.00020998,2]
[349734835,1737401438595,-594.87455605,0.00020998,2]
[349734837,1737401438605,-500.0,0.00020998,2]
[349734839,1737401438614,-594.87455605,0.00020998,2]
[349734841,1737401438624,-500.0,0.00020998,2]
[349734843,1737401438634,-594.87455605,0.00020998,2]
[349734845,1737401438643,-594.87455605,0.00020998,2]
[349734847,1737401438655,-500.0,0.00020998,2]
[349734849,1737401438665,-594.87455605,0.00020998,2]
[349734851,1737401438674,-594.87455605,0.00020998,2]
[349734853,1737401438684,-594.87455605,0.00020998,2]
[349734856,1737401438694,-594.87455605,0.00020998,2]
[349734858,1737401438703,-594.87455605,0.00020998,2]
[349734860,1737401438713,-594.87455605,0.00020998,2]
[349734862,1737401438722,-594.87455605,0.00020998,2]
[349734864,1737401438732,-594.87455605,0.00020998,2]
[349734866,1737401438741,-594.87455605,0.00020998,2]
[349734868,1737401438751,-594.87455605,0.00020998,2]
[349734870,1737401438761,-594.87455605,0.00020998,2]
[349734872,1737401438770,-594.87455605,0.00020998,2]
[349734874,1737401438780,-594.87455605,0.00020998,2]
[349734876,1737401438790,-594.87455605,0.00020998,2]
[349734878,1737401438799,-594.87455605,0.00020998,2]
[349734880,1737401438809,-594.87455605,0.00020998,2]
[349734882,1737401438818,-594.87455605,0.00020998,2]
[349734884,1737401438828,-594.87455605,0.00020998,2]
[349734886,1737401438837,-594.87455605,0.00020998,2]
[349734888,1737401438846,-594.87455605,0.00020998,2]
[349734890,1737401438855,-594.87455605,0.00020998,2]
[349734892,1737401438865,-594.87455605,0.00020998,2]
[349734894,1737401438874,-594.87455605,0.00020998,2]
[349734896,1737401438883,-594.87455605,0.00020998,2]
[349734898,1737401438892,-594.87455605,0.00020998,2]
[349734900,1737401438904,-594.87455605,0.00020998,2]
[349734902,1737401438913,-594.87455605,0.00020998,2]
[349734904,1737401438923,-594.87455605,0.00020998,2]
[349734906,1737401438932,-594.87455605,0.00020998,2]
[349734908,1737401438941,-594.87455605,0.00020998,2]
[349734910,1737401438951,-594.87455605,0.00020998,2]
[349734912,1737401438960,-594.87455605,0.00020998,2]
[349734914,1737401438970,-594.87455605,0.00020998,2]
[349734916,1737401438979,-594.87455605,0.00020998,2]
[349734918,1737401438989,-594.87455605,0.00020998,2]
[349734921,1737401438999,-594.87455605,0.00020998,2]
[349734923,1737401439009,-594.87455605,0.00020998,2]
[349734925,1737401439019,-594.87455605,0.00020998,2]
[349734927,1737401439029,-594.87455605,0.00020998,2]
[349734929,1737401439038,-594.87455605,0.00020998,2]
[349734931,1737401439048,-27920.3227763,0.00020998,5]
[349734933,1737401439057,-143.19475143,0.00021,15]
[349734935,1737401439069,-409.8331988,0.00021,15]
[349734937,1737401439080,-13253.4652268,0.00021,15]
[349735040,1737401440028,-1601.99624086,0.00021,15]
[349735042,1737401440040,-715.3970846,0.00021,15]
[349735048,1737401440082,-2971.09998815,0.00021,15]
[349735050,1737401440092,-3220.47775371,0.00021,15]
[349735335,1737401442868,-20.41262563,0.00021,15]
[349735337,1737401442883,-2818.97272871,0.00021,15]
[349735540,1737401445874,-137922.46170824,0.00021,15]
[349735623,1737402477320,163.853686,0.00013973,2]
[349735624,1737402545126,-250.0,0.00018891,2]
[349735625,1737402545148,-727.86089527,0.000189,2]
[349735626,1737402545168,-2601.95506135,0.00019378,2]
[349735627,1737402560089,-339.52038525,0.00019378,2]
[349735628,1737402560111,-133.36826336,0.00019716,7]
[349735640,1737402632081,-366.63173664,0.00019716,7]
[349735641,1737402632090,-167.77559235,0.00019865,2]
[349735642,1737402632100,-65.59267101,0.00019865,2]
[349735643,1737402632111,-108.27878026,0.00019865,2]
[349735644,1737402632122,-300.0,0.00019899,2]
[349735645,1737402632131,-4545.91218295,0.000199,2]
[349735646,1737402632142,-14033.17308718,0.000199,2]
[349735647,1737402632240,-50355.30391549,0.000199,2]
[349735653,1737402637919,-16565.6198693,0.000199,2]
[349735654,1737402637928,-185.702,0.00019965,2]
[349735655,1737402637937,-155.65,0.000203,2]
[349735656,1737402637947,-2005.29973004,0.00020332,2]
[349735657,1737402637956,-173.87145127,0.00020382,2]
[349735658,1737402637967,-500.0,0.00020432,2]
[349735659,1737402637976,-10593.16663858,0.0002064,2]
[349735660,1737402637985,-500.0,0.00020843,2]
[349735661,1737402637994,-500.0,0.00020875,2]
[349735662,1737402638003,-334.30911666,0.00020875,2]
[349735663,1737402638013,-500.0,0.00020875,2]
[349735664,1737402638023,-500.0,0.00020889,2]
[349735665,1737402638032,-266.88544486,0.00020889,2]
[349735667,1737402638042,-173.87145127,0.00020899,2]
[349735669,1737402638051,-151.0,0.000209,4]
[349735670,1737402638061,-151.0,0.000209,3]
[349735672,1737402638070,-151.0,0.000209,3]
[349735673,1737402638080,-151.0,0.000209,3]
[349735675,1737402638089,-151.0,0.000209,3]
[349735677,1737402638099,-8570.81246067,0.000209,2]
[349735679,1737402638108,-33837.49446334,0.000209,3]
[349735681,1737402638117,-151.0,0.000209,3]
[349735683,1737402638128,-307.92442353,0.000209,2]
[349735686,1737402638137,-477.27078037,0.00020973,2]
[349735688,1737402638146,-259.75032608,0.00020973,2]
[349735690,1737402638156,-500.0,0.00020973,2]
[349735692,1737402638164,-500.0,0.00020973,2]
[349735694,1737402638173,-500.0,0.00020973,2]
[349735696,1737402638183,-187.76884539,0.00020973,2]
[349735698,1737402638192,-162.46888864,0.00020973,2]
[349735700,1737402638201,-500.0,0.00020973,2]
[349735702,1737402638210,-225.16824083,0.00020973,2]
[349735704,1737402638219,-500.0,0.00020973,2]
[349735706,1737402638228,-620.37476848,0.00020973,2]
[349735708,1737402638238,-160.0,0.00020999,2]
[349735710,1737402638247,-500.0,0.00020999,2]
[349735712,1737402638256,-650.55210854,0.00020999,2]
[349735714,1737402638267,-500.0,0.00020999,2]
[349735716,1737402638276,-500.0,0.00020999,2]
[349735718,1737402638286,-500.0,0.00020999,2]
[349735720,1737402638295,-236.74895293,0.00020999,2]
[349735722,1737402638304,-598.50202799,0.00020999,2]
[349735724,1737402638313,-500.0,0.00020999,2]
[349735726,1737402638322,-500.0,0.00020999,2]
[349735728,1737402638332,-500.0,0.00020999,2]
[349735731,1737402638342,-500.0,0.00020999,2]
[349735733,1737402638351,-214.54934396,0.00020999,2]
[349735735,1737402638361,-500.0,0.00020999,2]
[349735737,1737402638370,-638.33687536,0.00020999,2]
[349735738,1737402638380,-500.0,0.00020999,2]
[349735740,1737402638389,-500.0,0.00020999,2]
[349735741,1737402638399,-411.27109316,0.00020999,2]
[349735743,1737402638408,-500.0,0.00020999,2]
[349735752,1737402638528,-500.0,0.00020999,2]
[349735754,1737402638538,-500.0,0.00020999,2]
[349735756,1737402638548,-500.0,0.00020999,2]
[349735757,1737402638557,-488.3721703,0.00020999,2]
[349735759,1737402638568,-500.0,0.00020999,2]
[349735761,1737402638577,-500.0,0.00020999,2]
[349735762,1737402638587,-500.0,0.00020999,2]
[349735764,1737402638597,-500.0,0.00020999,2]
[349735766,1737402638606,-500.0,0.00020999,2]
[349735767,1737402638615,-500.0,0.00020999,2]
[349735769,1737402638625,-500.0,0.00020999,2]
[349735771,1737402638636,-500.0,0.00020999,2]
[349735773,1737402638645,-500.0,0.00020999,2]
[349735774,1737402638654,-500.0,0.00020999,2]
[349735776,1737402638664,-500.0,0.00020999,2]
[349735778,1737402638673,-500.0,0.00020999,2]
[349735780,1737402638683,-500.0,0.00020999,2]
[349735781,1737402638692,-500.0,0.00020999,2]
[349735783,1737402638702,-500.0,0.00020999,2]
[349735785,1737402638711,-500.0,0.00020999,2]
[349735786,1737402638721,-500.0,0.00020999,2]
[349735788,1737402638730,-500.0,0.00020999,2]
[349735790,1737402638739,-500.0,0.00020999,2]
[349735791,1737402638749,-500.0,0.00020999,2]
[349735793,1737402638758,-500.0,0.00020999,2]
[349735795,1737402638768,-500.0,0.00020999,2]
[349735797,1737402638778,-500.0,0.00020999,2]
[349735799,1737402638789,-500.0,0.00020999,2]
[349735800,1737402638799,-500.0,0.00020999,2]
[349735802,1737402638811,-500.0,0.00020999,2]
[349735804,1737402638820,-500.0,0.00020999,2]
[349735806,1737402638830,-500.0,0.00020999,2]
[349735808,1737402638839,-500.0,0.00020999,2]
[349735809,1737402638849,-500.0,0.00020999,2]
[349735811,1737402638858,-500.0,0.00020999,2]
[349735813,1737402638867,-500.0,0.00020999,2]
[349735815,1737402638880,-500.0,0.00020999,2]
[349735817,1737402638890,-500.0,0.00020999,2]
[349735818,1737402638899,-500.0,0.00020999,2]
[349735820,1737402638909,-500.0,0.00020999,2]
[349735822,1737402638918,-500.0,0.00020999,2]
[349735824,1737402638927,-500.0,0.00020999,2]
[349735825,1737402638936,-169.33016304,0.00020999,2]
[349735827,1737402638946,-500.0,0.00020999,2]
[349735829,1737402638955,-500.0,0.00020999,2]
[349735830,1737402638965,-500.0,0.00020999,2]
[349735831,1737402638974,-500.0,0.00020999,2]
[349735832,1737402638984,-207.76180851,0.00020999,2]
[349735833,1737402638994,-500.0,0.00020999,2]
[349735834,1737402639004,-500.0,0.00020999,2]
[349735835,1737402639014,-500.0,0.00020999,2]
[349735836,1737402639023,-500.0,0.00020999,2]
[349735837,1737402639033,-500.0,0.00020999,2]
[349735838,1737402639042,-500.0,0.00020999,2]
[349735839,1737402639053,-500.0,0.00020999,2]
[349735840,1737402639062,-500.0,0.00020999,2]
[349735841,1737402639071,-500.0,0.00020999,2]
[349735842,1737402639080,-500.0,0.00020999,2]
[349735843,1737402639090,-500.0,0.00020999,2]
[349735844,1737402639100,-500.0,0.00020999,2]
[349735845,1737402639109,-500.0,0.00020999,2]
[349735846,1737402639119,-500.0,0.00020999,2]
[349735847,1737402639130,-500.0,0.00020999,2]
[349735848,1737402639139,-500.0,0.00020999,2]
[349735849,1737402639148,-500.0,0.00020999,2]
[349735850,1737402639158,-500.0,0.00020999,2]
[349735851,1737402639167,-500.0,0.00020999,2]
[349735852,1737402639176,-500.0,0.00020999,2]
[349735853,1737402639186,-500.0,0.00020999,2]
[349735854,1737402639195,-500.0,0.00020999,2]
[349735855,1737402639205,-500.0,0.00020999,2]
[349735856,1737402639215,-500.0,0.00020999,2]
[349735857,1737402639224,-500.0,0.00020999,2]
[349735858,1737402639234,-500.0,0.00020999,2]
[349735859,1737402639243,-500.0,0.00020999,2]
[349735860,1737402639253,-500.0,0.00020999,2]
[349735861,1737402639262,-500.0,0.00020999,2]
[349735862,1737402639271,-500.0,0.00020999,2]
[349735863,1737402639280,-500.0,0.00020999,2]
[349735864,1737402639290,-500.0,0.00020999,2]
[349735865,1737402639299,-500.0,0.00020999,2]
[349735866,1737402639308,-500.0,0.00020999,2]
[349735867,1737402639318,-500.0,0.00020999,2]
[349735868,1737402639327,-500.0,0.00020999,2]
[349735869,1737402639336,-500.0,0.00020999,2]
[349735870,1737402639346,-500.0,0.00020999,2]
[349735871,1737402639355,-500.0,0.00020999,2]
[349735872,1737402639364,-500.0,0.00020999,2]
[349735873,1737402639373,-550.0,0.00020999,2]
[349735874,1737402639383,-1232.18612192,0.00021,5]
[349735875,1737402639397,-4301.710511,0.00021,5]
[349735876,1737402639408,-3527.17797671,0.00021,5]
[349735906,1737402640439,-948.60819018,0.00021,5]
[349735907,1737402640451,-8792.88179551,0.00021,5]
[349736010,1737402642962,-1398.805238,0.00021,5]
[349736344,1737402646068,-631.66000005,0.00021,5]
[349736358,1737402646183,-471.09265718,0.00021,5]
[349736360,1737402646194,-6276.0,0.00021,5]
[349738381,1737403018732,7738.95241952,0.0002,120]
[349738382,1737403018753,1949.2,0.0002,120]
[349738383,1737403018778,5960.0,0.0002,120]
[349738384,1737403018806,10129.88271686,0.0002,120]
[349738390,1737403324085,163.634334,0.00013973,2]
[349738393,1737403748143,-471.89960213,0.000189,2]
[349738452,1737403832379,-138.76564024,0.000189,2]
[349738454,1737403832389,-3250.0,0.0002,2]
[349738456,1737403832398,-500.0,0.00020432,2]
[349738457,1737403832408,-662.963,0.0002082,2]
[349738459,1737403832418,-427.27532415,0.00020889,2]
[349738461,1737403832429,-300.0,0.00020898,2]
[349738464,1737403832439,-5359.11549993,0.00020899,2]
[349738466,1737403832449,-500.0,0.00020899,7]
[349738468,1737403832458,-10116.63343998,0.000209,3]
[349738469,1737403832467,-7713.73121463,0.000209,2]
[349738472,1737403832476,-751.67070906,0.000209,2]
[349738473,1737403832486,-890.72200293,0.000209,2]
[349738476,1737403832495,-500.0,0.00020973,2]
[349738478,1737403832505,-500.0,0.00020973,2]
[349738480,1737403832514,-500.0,0.00020973,2]
[349738482,1737403832524,-615.31913201,0.00020973,2]
[349738484,1737403832534,-189.855,0.00020999,2]
[349738486,1737403832543,-263.99220683,0.00020999,2]
[349738488,1737403832553,-500.0,0.00020999,2]
[349738490,1737403832562,-382.07827116,0.00020999,2]
[349738492,1737403832571,-500.0,0.00020999,2]
[349738494,1737403832581,-500.0,0.00020999,2]
[349738496,1737403832590,-500.0,0.00020999,2]
[349738498,1737403832600,-540.47728778,0.00020999,2]
[349738500,1737403832609,-500.0,0.00020999,2]
[349738502,1737403832620,-500.0,0.00020999,2]
[349738504,1737403832630,-500.0,0.00020999,2]
[349738506,1737403832639,-446.5708896,0.00020999,2]
[349738508,1737403832648,-449.3890506,0.00020999,2]
[349738510,1737403832657,-429.12575996,0.00020999,2]
[349738512,1737403832667,-36449.30306233,0.00021,5]
[349738514,1737403832677,-13960.16138815,0.00021,5]
[349738516,1737403832686,-1566423.49359839,0.00021,15]
[349738518,1737403832698,-102461.28209508,0.00021,15]
[349738520,1737403832710,-1078.66298385,0.00021,15]
[349738535,1737403832840,-14021.17557066,0.00021,15]
[349738538,1737403832859,-21131.0544516,0.00021,15]
[349739049,1737403838184,-7200.8762,0.00021,15]
[349739051,1737403838198,-4608.19850512,0.00021,15]
[349739053,1737403838209,-1281.878382,0.00021,15]
[349739059,1737403838257,-21906.49185339,0.00021,15]
[349739062,1737403838270,-819.54220736,0.00021,15]
[349739064,1737403838281,-41138.02888865,0.00021,15]
[349739071,1737403838326,-89071.40718761,0.00021,15]
[349739263,1737403840350,-4176.209831,0.00021,15]
[349739277,1737403840477,-522.71335606,0.00021,15]
[349739280,1737403840497,-25683.52731383,0.00021,15]
[349739282,1737403840508,-1045.48491338,0.00021,15]
[349739284,1737403840519,-1224.71308662,0.00021,15]
[349739287,1737403840530,-572.60982878,0.00021,15]
[349739480,1737403843201,-9249.94453329,0.00021,15]
[349739487,1737403843256,-269.65897194,0.00021,15]
[349739494,1737403843311,-6501.42664049,0.00021,15]
[349739658,1737403846252,-12152.62897121,0.00021,15]
[349739660,1737404322470,-156.621993,0.00020441,15]
[349739661,1737404322491,-156.621993,0.0002058,15]
[349739662,1737404322521,-19617.656014,0.00021,15]
[349739664,1737404519802,163.559876,0.00013973,2]
[349739696,1737404952145,-407.11016158,0.00018339,2]
[349739697,1737404952167,-407.11016158,0.000189,2]
[349739698,1737404952188,-175.8971041,0.00019411,2]
[349739699,1737404952209,-300.0,0.00019594,2]
[349739700,1737404952231,-7380.9872888,0.00019595,2]
[349739752,1737405032431,-726.80538208,0.00019399,2]
[349739753,1737405032445,-300.0,0.00019594,2]
[349739754,1737405032456,-17519.0127112,0.00019595,2]
[349739755,1737405032466,-162.1301035,0.00019748,2]
[349739756,1737405032476,-250.0,0.00019868,2]
[349739757,1737405032486,-635.287,0.0001995,2]
[349739758,1737405032495,-465.0240022,0.00019989,2]
[349739759,1737405032505,-500.0,0.00020432,2]
[349739760,1737405032514,-671.1766284,0.00020789,2]
[349739761,1737405032524,-164.66090688,0.000208,2]
[349739762,1737405032533,-1998.20087238,0.000208,2]